[Event "Titled Tuesday Blitz November 08 Early 2022"]
[White "Jiganchine, Roman"]
[Black "Yuan, Qingyu"]
[WhiteFideId "2603667"]
[BlackFideId "8609772"]
[WhiteElo "2353"]
[BlackElo "2359"]
[Result "0-1"]
[Round "03"]
[TimeControl "180+1"]
[Date "2022.11.09"]
[WhiteClock "0:00:20"]
[BlackClock "0:00:49"]

1. e4 {[%clk 0:02:59]}  c6 {[%clk 0:03:00]} 2. d4 {[%clk 0:02:59]}  d5 {[%clk 0:03:00]} 3. exd5 {[%clk 0:02:59]}  cxd5 {[%clk 0:03:01]} 4. c4 {[%clk 0:03:00]}  Nf6 {[%clk 0:03:01]} 5. Nc3 {[%clk 0:03:00]}  Nc6 {[%clk 0:03:01]} 6. Nf3 {[%clk 0:03:00]}  a6 {[%clk 0:03:02]} 7. cxd5 {[%clk 0:02:56]}  Nxd5 {[%clk 0:03:02]} 8. Bd3 {[%clk 0:02:51]}  g6 {[%clk 0:02:58]} 9. Qb3 {[%clk 0:02:32]}  Be6 {[%clk 0:02:50]} 10. Ng5 {[%clk 0:02:09]}  Nxd4 {[%clk 0:02:35]} 11. Qxb7 {[%clk 0:01:50]}  Nxc3 {[%clk 0:02:08]} 12. bxc3 {[%clk 0:01:23]}  Bd5 {[%clk 0:02:04]} 13. Qb4 {[%clk 0:01:07]}  Bxg2 {[%clk 0:01:32]} 14. Rg1 {[%clk 0:00:31]}  Nf3+ {[%clk 0:01:16]} 15. Ke2 {[%clk 0:00:31]}  Nxg1+ {[%clk 0:01:14]} 16. Ke3 {[%clk 0:00:26]}  Bh6 {[%clk 0:01:07]} 17. Qf4 {[%clk 0:00:21]}  O-O {[%clk 0:00:52]} 18. Ba3 {[%clk 0:00:20]}  Nh3 {[%clk 0:00:49]} 0-1


[Site "https://www.chess.com"]

[Event "Titled Tuesday Blitz November 08 Early 2022"]
[White "Khaliun, Batnasan"]
[Black "Kouskoutis, Georgios-Alexandros"]
[WhiteFideId "4906276"]
[BlackFideId "4234049"]
[WhiteElo "1752"]
[BlackElo "2187"]
[Result "0-1"]
[Round "03"]
[TimeControl "180+1"]
[Date "2022.11.09"]
[WhiteClock "0:00:04"]
[BlackClock "0:00:17"]

1. d4 {[%clk 0:03:00]}  Nf6 {[%clk 0:02:58]} 2. c4 {[%clk 0:03:00]}  e6 {[%clk 0:02:54]} 3. g3 {[%clk 0:02:59]}  d5 {[%clk 0:02:52]} 4. Nf3 {[%clk 0:02:58]}  Be7 {[%clk 0:02:52]} 5. Bg2 {[%clk 0:02:58]}  O-O {[%clk 0:02:53]} 6. O-O {[%clk 0:02:58]}  c6 {[%clk 0:02:53]} 7. Qc2 {[%clk 0:02:53]}  b6 {[%clk 0:02:50]} 8. Nbd2 {[%clk 0:02:52]}  Bb7 {[%clk 0:02:41]} 9. e4 {[%clk 0:02:49]}  Na6 {[%clk 0:02:40]} 10. e5 {[%clk 0:02:46]}  Nd7 {[%clk 0:02:38]} 11. cxd5 {[%clk 0:02:21]}  Nb4 {[%clk 0:02:37]} 12. Qb3 {[%clk 0:02:01]}  Nxd5 {[%clk 0:02:30]} 13. Ne4 {[%clk 0:01:49]}  c5 {[%clk 0:02:07]} 14. Nd6 {[%clk 0:00:23]}  Ba6 {[%clk 0:01:45]} 15. Re1 {[%clk 0:00:21]}  cxd4 {[%clk 0:01:41]} 16. Nxd4 {[%clk 0:00:19]}  Nxe5 {[%clk 0:01:22]} 17. Rxe5 {[%clk 0:00:12]}  Qxd6 {[%clk 0:01:01]} 18. Re1 {[%clk 0:00:12]}  Rac8 {[%clk 0:00:54]} 19. Bd2 {[%clk 0:00:08]}  Bf6 {[%clk 0:00:43]} 20. Nf3 {[%clk 0:00:07]}  h6 {[%clk 0:00:32]} 21. Qd1 {[%clk 0:00:06]}  Rc6 {[%clk 0:00:20]} 22. Bc3 {[%clk 0:00:05]}  Nxc3 {[%clk 0:00:18]} 23. bxc3 {[%clk 0:00:04]}  Bxc3 {[%clk 0:00:17]} 0-1


[Site "https://www.chess.com"]

[Event "Titled Tuesday Blitz November 08 Early 2022"]
[White "Khamdamova, Afruza"]
[Black "Bagrationi, Alexander"]
[WhiteFideId "14210444"]
[BlackFideId "14104954"]
[WhiteElo "2018"]
[BlackElo "2398"]
[Result "1/2-1/2"]
[Round "03"]
[TimeControl "180+1"]
[Date "2022.11.09"]
[WhiteClock "0:00:04"]
[BlackClock "0:00:05"]

1. e4 {[%clk 0:03:00]}  d5 {[%clk 0:02:57]} 2. exd5 {[%clk 0:03:00]}  Qxd5 {[%clk 0:02:58]} 3. Nc3 {[%clk 0:03:00]}  Qe5+ {[%clk 0:02:58]} 4. Be2 {[%clk 0:02:59]}  Bg4 {[%clk 0:02:58]} 5. d4 {[%clk 0:02:56]}  Bxe2 {[%clk 0:02:58]} 6. Ngxe2 {[%clk 0:02:56]}  Qa5 {[%clk 0:02:58]} 7. O-O {[%clk 0:02:54]}  Nf6 {[%clk 0:02:59]} 8. Bd2 {[%clk 0:02:50]}  Qh5 {[%clk 0:02:51]} 9. Bf4 {[%clk 0:02:46]}  c6 {[%clk 0:02:45]} 10. Qd3 {[%clk 0:02:46]}  Nbd7 {[%clk 0:02:37]} 11. Rfe1 {[%clk 0:02:35]}  e6 {[%clk 0:02:32]} 12. Rad1 {[%clk 0:02:27]}  Be7 {[%clk 0:02:27]} 13. Ng3 {[%clk 0:02:10]}  Qh4 {[%clk 0:02:21]} 14. Qd2 {[%clk 0:01:42]}  h6 {[%clk 0:02:10]} 15. Nce4 {[%clk 0:01:39]}  O-O {[%clk 0:01:55]} 16. c4 {[%clk 0:01:33]}  Rfd8 {[%clk 0:01:52]} 17. h3 {[%clk 0:01:24]}  Nc5 {[%clk 0:01:40]} 18. Nxc5 {[%clk 0:01:17]}  Bxc5 {[%clk 0:01:40]} 19. Qe3 {[%clk 0:01:17]}  Bb4 {[%clk 0:01:36]} 20. Rf1 {[%clk 0:01:13]}  Rd7 {[%clk 0:01:31]} 21. a3 {[%clk 0:01:13]}  Ba5 {[%clk 0:01:27]} 22. Be5 {[%clk 0:01:11]}  Rad8 {[%clk 0:01:21]} 23. b4 {[%clk 0:00:57]}  Bb6 {[%clk 0:01:19]} 24. Ne2 {[%clk 0:00:55]}  Nh5 {[%clk 0:01:02]} 25. Rd3 {[%clk 0:00:39]}  Qg5 {[%clk 0:00:50]} 26. Rfd1 {[%clk 0:00:30]}  f6 {[%clk 0:00:36]} 27. Bf4 {[%clk 0:00:18]}  Nxf4 {[%clk 0:00:34]} 28. Nxf4 {[%clk 0:00:18]}  e5 {[%clk 0:00:33]} 29. Ne6 {[%clk 0:00:18]}  Qxe3 {[%clk 0:00:29]} 30. fxe3 {[%clk 0:00:18]}  Re8 {[%clk 0:00:28]} 31. Nc5 {[%clk 0:00:18]}  Bxc5 {[%clk 0:00:26]} 32. bxc5 {[%clk 0:00:18]}  exd4 {[%clk 0:00:12]} 33. exd4 {[%clk 0:00:18]}  Re4 {[%clk 0:00:11]} 34. Kf2 {[%clk 0:00:18]}  Kf7 {[%clk 0:00:11]} 35. Kf3 {[%clk 0:00:18]}  f5 {[%clk 0:00:12]} 36. g4 {[%clk 0:00:18]}  g6 {[%clk 0:00:11]} 37. gxf5 {[%clk 0:00:17]}  gxf5 {[%clk 0:00:12]} 38. R3d2 {[%clk 0:00:17]}  Kf6 {[%clk 0:00:12]} 39. d5 {[%clk 0:00:09]}  Rxc4 {[%clk 0:00:12]} 40. dxc6 {[%clk 0:00:09]}  Rxd2 {[%clk 0:00:10]} 41. Rxd2 {[%clk 0:00:10]}  bxc6 {[%clk 0:00:11]} 42. Rd6+ {[%clk 0:00:10]}  Ke5 {[%clk 0:00:11]} 43. Rxc6 {[%clk 0:00:10]}  Rc3+ {[%clk 0:00:12]} 44. Ke2 {[%clk 0:00:10]}  Rxa3 {[%clk 0:00:12]} 45. Rxh6 {[%clk 0:00:10]}  Ke4 {[%clk 0:00:11]} 46. Re6+ {[%clk 0:00:10]}  Kd5 {[%clk 0:00:11]} 47. Rf6 {[%clk 0:00:09]}  Ke5 {[%clk 0:00:11]} 48. Rf7 {[%clk 0:00:09]}  Rc3 {[%clk 0:00:09]} 49. Rxa7 {[%clk 0:00:08]}  Rxc5 {[%clk 0:00:10]} 50. h4 {[%clk 0:00:08]}  Ke4 {[%clk 0:00:09]} 51. Ra4+ {[%clk 0:00:08]}  Ke5 {[%clk 0:00:09]} 52. Kf3 {[%clk 0:00:09]}  Rc3+ {[%clk 0:00:09]} 53. Kf2 {[%clk 0:00:09]}  Rh3 {[%clk 0:00:09]} 54. Kg2 {[%clk 0:00:09]}  Rb3 {[%clk 0:00:08]} 55. Kf2 {[%clk 0:00:09]}  Kf6 {[%clk 0:00:08]} 56. Ra6+ {[%clk 0:00:08]}  Ke5 {[%clk 0:00:08]} 57. Ra4 {[%clk 0:00:08]}  Rc3 {[%clk 0:00:07]} 58. Ke2 {[%clk 0:00:08]}  f4 {[%clk 0:00:07]} 59. Ra5+ {[%clk 0:00:07]}  Ke4 {[%clk 0:00:07]} 60. Ra4+ {[%clk 0:00:08]}  Kf5 {[%clk 0:00:07]} 61. h5 {[%clk 0:00:05]}  Kg4 {[%clk 0:00:07]} 62. h6 {[%clk 0:00:05]}  Rc2+ {[%clk 0:00:08]} 63. Kf1 {[%clk 0:00:04]}  Rh2 {[%clk 0:00:07]} 64. Ra6 {[%clk 0:00:03]}  Kg3 {[%clk 0:00:06]} 65. h7 {[%clk 0:00:02]}  Rh1+ {[%clk 0:00:06]} 66. Ke2 {[%clk 0:00:02]}  Rxh7 {[%clk 0:00:03]} 67. Rg6+ {[%clk 0:00:02]}  Kh3 {[%clk 0:00:03]} 68. Kf3 {[%clk 0:00:02]}  Rh4 {[%clk 0:00:02]} 69. Rg7 {[%clk 0:00:02]}  Kh2 {[%clk 0:00:02]} 70. Rg2+ {[%clk 0:00:02]}  Kh1 {[%clk 0:00:03]} 71. Rg4 {[%clk 0:00:03]}  Rh3+ {[%clk 0:00:03]} 72. Kxf4 {[%clk 0:00:03]}  Rh2 {[%clk 0:00:04]} 73. Rg3 {[%clk 0:00:03]}  Rg2 {[%clk 0:00:04]} 74. Kg4 {[%clk 0:00:04]}  Kg1 {[%clk 0:00:04]} 75. Rxg2+ {[%clk 0:00:04]}  Kxg2 {[%clk 0:00:05]} 1/2-1/2


[Site "https://www.chess.com"]

[Event "Titled Tuesday Blitz November 08 Early 2022"]
[White "Khandelwal, Ankush"]
[Black "Arencibia Monduy, Antonio"]
[WhiteFideId "413470"]
[BlackFideId "3507939"]
[WhiteElo "2271"]
[BlackElo "2521"]
[Result "1-0"]
[Round "03"]
[TimeControl "180+1"]
[Date "2022.11.09"]
[WhiteClock "0:00:28"]
[BlackClock "0:00:05"]

1. e4 {[%clk 0:03:00]}  d6 {[%clk 0:02:56]} 2. d4 {[%clk 0:03:00]}  c6 {[%clk 0:02:57]} 3. Nc3 {[%clk 0:02:58]}  Qc7 {[%clk 0:02:57]} 4. Be3 {[%clk 0:02:57]}  e5 {[%clk 0:02:57]} 5. Nf3 {[%clk 0:02:51]}  Bg4 {[%clk 0:02:56]} 6. h3 {[%clk 0:02:50]}  Bh5 {[%clk 0:02:57]} 7. g4 {[%clk 0:02:40]}  Bg6 {[%clk 0:02:57]} 8. Nh4 {[%clk 0:02:38]}  Nf6 {[%clk 0:02:57]} 9. Qf3 {[%clk 0:02:31]}  Nbd7 {[%clk 0:02:28]} 10. O-O-O {[%clk 0:02:28]}  Be7 {[%clk 0:02:21]} 11. Nf5 {[%clk 0:02:26]}  Bxf5 {[%clk 0:02:19]} 12. gxf5 {[%clk 0:02:26]}  Qa5 {[%clk 0:01:59]} 13. Rg1 {[%clk 0:02:22]}  Rg8 {[%clk 0:01:56]} 14. dxe5 {[%clk 0:02:07]}  dxe5 {[%clk 0:01:50]} 15. Bc4 {[%clk 0:02:02]}  b5 {[%clk 0:01:44]} 16. Bb3 {[%clk 0:02:02]}  Qc7 {[%clk 0:01:35]} 17. a4 {[%clk 0:01:30]}  a6 {[%clk 0:01:17]} 18. Kb1 {[%clk 0:01:12]}  Rb8 {[%clk 0:00:52]} 19. Rg3 {[%clk 0:00:59]}  Bb4 {[%clk 0:00:36]} 20. Bd2 {[%clk 0:00:50]}  Bf8 {[%clk 0:00:27]} 21. Bg5 {[%clk 0:00:38]}  h6 {[%clk 0:00:24]} 22. Bh4 {[%clk 0:00:34]}  Be7 {[%clk 0:00:18]} 23. Rdg1 {[%clk 0:00:33]}  Kf8 {[%clk 0:00:18]} 24. Qg2 {[%clk 0:00:31]}  Nh5 {[%clk 0:00:18]} 25. Bxe7+ {[%clk 0:00:31]}  Kxe7 {[%clk 0:00:19]} 26. Rg4 {[%clk 0:00:31]}  Ndf6 {[%clk 0:00:18]} 27. Rh4 {[%clk 0:00:30]}  b4 {[%clk 0:00:14]} 28. Ne2 {[%clk 0:00:30]}  Rbd8 {[%clk 0:00:12]} 29. f4 {[%clk 0:00:31]}  exf4 {[%clk 0:00:11]} 30. Nxf4 {[%clk 0:00:32]}  Nxf4 {[%clk 0:00:11]} 31. Qg3 {[%clk 0:00:32]}  N6h5 {[%clk 0:00:08]} 32. Rxh5 {[%clk 0:00:32]}  Qd6 {[%clk 0:00:08]} 33. e5 {[%clk 0:00:31]}  Qxe5 {[%clk 0:00:08]} 34. Re1 {[%clk 0:00:30]}  Rd1+ {[%clk 0:00:07]} 35. Rxd1 {[%clk 0:00:30]}  Kf6 {[%clk 0:00:08]} 36. Qh4+ {[%clk 0:00:29]}  g5 {[%clk 0:00:08]} 37. fxg6+ {[%clk 0:00:30]}  Kg7 {[%clk 0:00:05]} 38. Rxe5 {[%clk 0:00:28]}  Nxg6 {[%clk 0:00:05]} 39. Rg1 {[%clk 0:00:28]} 1-0


[Site "https://www.chess.com"]

[Event "Titled Tuesday Blitz November 08 Early 2022"]
[White "Kodinets, Konstantin L."]
[Black "Kopylov, Alexander A."]
[WhiteFideId "4122011"]
[BlackFideId "4164857"]
[WhiteElo "2447"]
[BlackElo "2436"]
[Result "0-1"]
[Round "03"]
[TimeControl "180+1"]
[Date "2022.11.09"]
[WhiteClock "0:00:07"]
[BlackClock "0:01:03"]

1. d4 {[%clk 0:02:58]}  c5 {[%clk 0:02:59]} 2. d5 {[%clk 0:02:58]}  e6 {[%clk 0:02:59]} 3. Nc3 {[%clk 0:02:57]}  Nf6 {[%clk 0:02:59]} 4. e4 {[%clk 0:02:50]}  exd5 {[%clk 0:02:59]} 5. Nxd5 {[%clk 0:02:51]}  Nxd5 {[%clk 0:02:58]} 6. Qxd5 {[%clk 0:02:51]}  Nc6 {[%clk 0:02:57]} 7. Bg5 {[%clk 0:02:40]}  Be7 {[%clk 0:02:56]} 8. Nf3 {[%clk 0:02:35]}  O-O {[%clk 0:02:50]} 9. Bxe7 {[%clk 0:02:34]}  Qxe7 {[%clk 0:02:49]} 10. O-O-O {[%clk 0:02:26]}  Nb4 {[%clk 0:02:46]} 11. Qe5 {[%clk 0:01:53]}  Qxe5 {[%clk 0:02:36]} 12. Nxe5 {[%clk 0:01:53]}  Nxa2+ {[%clk 0:02:37]} 13. Kb1 {[%clk 0:01:53]}  Nb4 {[%clk 0:02:38]} 14. Bc4 {[%clk 0:01:40]}  Nc6 {[%clk 0:02:30]} 15. Rd5 {[%clk 0:00:51]}  Re8 {[%clk 0:01:34]} 16. Nxf7 {[%clk 0:00:29]}  Kxf7 {[%clk 0:01:31]} 17. Re5+ {[%clk 0:00:20]}  Kf8 {[%clk 0:01:23]} 18. Rf5+ {[%clk 0:00:20]}  Ke7 {[%clk 0:01:24]} 19. Rf7+ {[%clk 0:00:20]}  Kd6 {[%clk 0:01:21]} 20. Rxg7 {[%clk 0:00:21]}  Rxe4 {[%clk 0:01:20]} 21. Rd1+ {[%clk 0:00:20]}  Kc7 {[%clk 0:01:19]} 22. Bd5 {[%clk 0:00:19]}  Re7 {[%clk 0:01:19]} 23. Rg8 {[%clk 0:00:18]}  b6 {[%clk 0:01:17]} 24. f4 {[%clk 0:00:17]}  Bb7 {[%clk 0:01:17]} 25. Rxa8 {[%clk 0:00:16]}  Bxa8 {[%clk 0:01:18]} 26. c3 {[%clk 0:00:16]}  Bb7 {[%clk 0:01:16]} 27. g4 {[%clk 0:00:17]}  Nd8 {[%clk 0:01:15]} 28. Bxb7 {[%clk 0:00:15]}  Nxb7 {[%clk 0:01:16]} 29. f5 {[%clk 0:00:14]}  Nd6 {[%clk 0:01:14]} 30. f6 {[%clk 0:00:11]}  Re2 {[%clk 0:01:10]} 31. Rf1 {[%clk 0:00:10]}  Nf7 {[%clk 0:01:10]} 32. h4 {[%clk 0:00:10]}  Re4 {[%clk 0:01:01]} 33. Rg1 {[%clk 0:00:09]}  Rf4 {[%clk 0:01:01]} 34. g5 {[%clk 0:00:07]}  Rxh4 {[%clk 0:01:01]} 35. g6 {[%clk 0:00:07]}  hxg6 {[%clk 0:01:02]} 36. Rxg6 {[%clk 0:00:07]}  Rf4 {[%clk 0:01:03]} 0-1


[Site "https://www.chess.com"]

[Event "Titled Tuesday Blitz November 08 Early 2022"]
[White "Kosakowski, Jakub"]
[Black "Turzo, Attila"]
[WhiteFideId "1185080"]
[BlackFideId "704954"]
[WhiteElo "2463"]
[BlackElo "2521"]
[Result "1-0"]
[Round "03"]
[TimeControl "180+1"]
[Date "2022.11.09"]
[WhiteClock "0:00:38"]
[BlackClock "0:00:11"]

1. c4 {[%clk 0:03:00]}  Nf6 {[%clk 0:02:40]} 2. g3 {[%clk 0:03:00]}  c6 {[%clk 0:02:33]} 3. Bg2 {[%clk 0:02:59]}  d5 {[%clk 0:02:33]} 4. Qa4 {[%clk 0:02:59]}  Nbd7 {[%clk 0:02:31]} 5. cxd5 {[%clk 0:02:57]}  cxd5 {[%clk 0:02:27]} 6. d4 {[%clk 0:02:56]}  g6 {[%clk 0:02:27]} 7. Nf3 {[%clk 0:02:55]}  Bg7 {[%clk 0:02:27]} 8. O-O {[%clk 0:02:55]}  O-O {[%clk 0:02:28]} 9. Nc3 {[%clk 0:02:55]}  Nb6 {[%clk 0:02:23]} 10. Qb3 {[%clk 0:02:54]}  Bd7 {[%clk 0:02:11]} 11. Bf4 {[%clk 0:02:52]}  Rc8 {[%clk 0:02:10]} 12. Rfc1 {[%clk 0:02:51]}  e6 {[%clk 0:02:06]} 13. Ne5 {[%clk 0:02:45]}  Bc6 {[%clk 0:02:04]} 14. Nb5 {[%clk 0:02:42]}  Bxb5 {[%clk 0:01:59]} 15. Qxb5 {[%clk 0:02:42]}  Qe7 {[%clk 0:01:55]} 16. Nd3 {[%clk 0:02:31]}  Ne4 {[%clk 0:01:48]} 17. Nc5 {[%clk 0:01:40]}  Bxd4 {[%clk 0:01:37]} 18. Nxe4 {[%clk 0:01:38]}  dxe4 {[%clk 0:01:37]} 19. Bxe4 {[%clk 0:01:37]}  f5 {[%clk 0:01:21]} 20. Bd3 {[%clk 0:01:27]}  Rfd8 {[%clk 0:01:14]} 21. a4 {[%clk 0:01:14]}  Nd5 {[%clk 0:01:08]} 22. Bd2 {[%clk 0:01:14]}  a6 {[%clk 0:00:49]} 23. Qb3 {[%clk 0:01:12]}  Kg7 {[%clk 0:00:44]} 24. Ba5 {[%clk 0:01:07]}  Re8 {[%clk 0:00:40]} 25. Bc4 {[%clk 0:01:02]}  Qd7 {[%clk 0:00:37]} 26. Rd1 {[%clk 0:00:59]}  Bf6 {[%clk 0:00:27]} 27. Bxd5 {[%clk 0:00:58]}  exd5 {[%clk 0:00:28]} 28. Rxd5 {[%clk 0:00:58]}  Qc6 {[%clk 0:00:23]} 29. e3 {[%clk 0:00:58]}  Re7 {[%clk 0:00:19]} 30. Bd8 {[%clk 0:00:51]}  Rf7 {[%clk 0:00:17]} 31. Bxf6+ {[%clk 0:00:51]}  Qxf6 {[%clk 0:00:17]} 32. Rad1 {[%clk 0:00:51]}  Rcc7 {[%clk 0:00:15]} 33. a5 {[%clk 0:00:49]}  Qe6 {[%clk 0:00:15]} 34. Qb4 {[%clk 0:00:48]}  Qc6 {[%clk 0:00:14]} 35. Qd4+ {[%clk 0:00:46]}  Qf6 {[%clk 0:00:14]} 36. b4 {[%clk 0:00:36]}  Qxd4 {[%clk 0:00:13]} 37. R1xd4 {[%clk 0:00:37]}  Kf6 {[%clk 0:00:13]} 38. Rd6+ {[%clk 0:00:37]}  Kg7 {[%clk 0:00:13]} 39. Rb6 {[%clk 0:00:37]}  Rfd7 {[%clk 0:00:12]} 40. Rxd7+ {[%clk 0:00:37]}  Rxd7 {[%clk 0:00:13]} 41. Kg2 {[%clk 0:00:37]}  Kf7 {[%clk 0:00:12]} 42. h3 {[%clk 0:00:37]}  Ke7 {[%clk 0:00:12]} 43. g4 {[%clk 0:00:37]}  fxg4 {[%clk 0:00:11]} 44. hxg4 {[%clk 0:00:38]}  Kd8 {[%clk 0:00:11]} 45. Kg3 {[%clk 0:00:36]}  Kc7 {[%clk 0:00:12]} 46. f4 {[%clk 0:00:35]}  Rd3 {[%clk 0:00:11]} 47. Kf3 {[%clk 0:00:35]}  Rb3 {[%clk 0:00:10]} 48. f5 {[%clk 0:00:35]}  gxf5 {[%clk 0:00:08]} 49. gxf5 {[%clk 0:00:35]}  Rb1 {[%clk 0:00:07]} 50. e4 {[%clk 0:00:36]}  Rf1+ {[%clk 0:00:07]} 51. Kg4 {[%clk 0:00:36]}  Rg1+ {[%clk 0:00:07]} 52. Kf4 {[%clk 0:00:36]}  h5 {[%clk 0:00:07]} 53. Rh6 {[%clk 0:00:34]}  Rg4+ {[%clk 0:00:07]} 54. Ke5 {[%clk 0:00:34]}  h4 {[%clk 0:00:07]} 55. f6 {[%clk 0:00:34]}  Rg5+ {[%clk 0:00:07]} 56. Ke6 {[%clk 0:00:34]}  Rg4 {[%clk 0:00:07]} 57. e5 {[%clk 0:00:34]}  Rxb4 {[%clk 0:00:06]} 58. f7 {[%clk 0:00:34]}  Rf4 {[%clk 0:00:06]} 59. Rh8 {[%clk 0:00:34]}  Kc6 {[%clk 0:00:06]} 60. f8=Q {[%clk 0:00:35]}  Rxf8 {[%clk 0:00:06]} 61. Rxf8 {[%clk 0:00:35]}  b6 {[%clk 0:00:07]} 62. axb6 {[%clk 0:00:35]}  Kxb6 {[%clk 0:00:08]} 63. Rh8 {[%clk 0:00:35]}  a5 {[%clk 0:00:08]} 64. Rxh4 {[%clk 0:00:35]}  a4 {[%clk 0:00:09]} 65. Rxa4 {[%clk 0:00:35]}  Kb5 {[%clk 0:00:10]} 66. Rf4 {[%clk 0:00:36]}  Kc5 {[%clk 0:00:10]} 67. Kf6 {[%clk 0:00:36]}  Kc6 {[%clk 0:00:10]} 68. e6 {[%clk 0:00:37]}  Kd6 {[%clk 0:00:11]} 69. e7 {[%clk 0:00:37]}  Kd7 {[%clk 0:00:11]} 70. Kf7 {[%clk 0:00:38]}  Kd6 {[%clk 0:00:11]} 71. e8=R {[%clk 0:00:38]}  Kd5 {[%clk 0:00:11]} 72. Re1 {[%clk 0:00:38]} 1-0


[Site "https://www.chess.com"]

[Event "Titled Tuesday Blitz November 08 Early 2022"]
[White "Krysa, Leandro"]
[Black "D`Arruda, Ricardo D."]
[WhiteFideId "116807"]
[BlackFideId "100692"]
[WhiteElo "2485"]
[BlackElo "2483"]
[Result "1/2-1/2"]
[Round "03"]
[TimeControl "180+1"]
[Date "2022.11.09"]
[WhiteClock "0:00:08"]
[BlackClock "0:00:19"]

1. e4 {[%clk 0:02:54]}  c5 {[%clk 0:02:58]} 2. Nf3 {[%clk 0:02:53]}  Nc6 {[%clk 0:02:57]} 3. d4 {[%clk 0:02:54]}  cxd4 {[%clk 0:02:58]} 4. Nxd4 {[%clk 0:02:55]}  e5 {[%clk 0:02:58]} 5. Nb5 {[%clk 0:02:55]}  a6 {[%clk 0:02:58]} 6. Nd6+ {[%clk 0:02:55]}  Bxd6 {[%clk 0:02:59]} 7. Qxd6 {[%clk 0:02:55]}  Qe7 {[%clk 0:02:59]} 8. Qxe7+ {[%clk 0:02:52]}  Ngxe7 {[%clk 0:03:00]} 9. c4 {[%clk 0:02:52]}  d6 {[%clk 0:02:59]} 10. Nc3 {[%clk 0:02:52]}  Be6 {[%clk 0:02:59]} 11. Be3 {[%clk 0:02:41]}  O-O {[%clk 0:02:58]} 12. Rc1 {[%clk 0:02:38]}  f5 {[%clk 0:02:52]} 13. f3 {[%clk 0:02:35]}  Rac8 {[%clk 0:02:49]} 14. b3 {[%clk 0:02:25]}  fxe4 {[%clk 0:02:44]} 15. Nxe4 {[%clk 0:02:22]}  d5 {[%clk 0:02:34]} 16. cxd5 {[%clk 0:02:21]}  Bxd5 {[%clk 0:02:28]} 17. Bc4 {[%clk 0:02:13]}  Nb4 {[%clk 0:02:03]} 18. a3 {[%clk 0:02:00]}  Bxc4 {[%clk 0:01:52]} 19. Rxc4 {[%clk 0:01:58]}  Rxc4 {[%clk 0:01:43]} 20. bxc4 {[%clk 0:01:59]}  Nc2+ {[%clk 0:01:40]} 21. Kf2 {[%clk 0:01:49]}  Nf5 {[%clk 0:01:29]} 22. Bc5 {[%clk 0:01:42]}  Rc8 {[%clk 0:01:29]} 23. Rb1 {[%clk 0:01:27]}  Rc7 {[%clk 0:01:20]} 24. a4 {[%clk 0:01:24]}  Ncd4 {[%clk 0:01:06]} 25. Rb6 {[%clk 0:01:22]}  h6 {[%clk 0:01:02]} 26. g3 {[%clk 0:00:46]}  Kf7 {[%clk 0:00:59]} 27. Bd6 {[%clk 0:00:42]}  Rxc4 {[%clk 0:00:52]} 28. Rxb7+ {[%clk 0:00:24]}  Ke6 {[%clk 0:00:48]} 29. Rb2 {[%clk 0:00:24]}  Nxd6 {[%clk 0:00:45]} 30. Rb6 {[%clk 0:00:18]}  Rc6 {[%clk 0:00:46]} 31. Rxc6 {[%clk 0:00:17]}  Nxc6 {[%clk 0:00:46]} 32. Nc5+ {[%clk 0:00:18]}  Kd5 {[%clk 0:00:46]} 33. Nxa6 {[%clk 0:00:19]}  Na5 {[%clk 0:00:39]} 34. Nc7+ {[%clk 0:00:18]}  Kc6 {[%clk 0:00:36]} 35. Ne6 {[%clk 0:00:18]}  g5 {[%clk 0:00:36]} 36. h4 {[%clk 0:00:17]}  Nf7 {[%clk 0:00:36]} 37. hxg5 {[%clk 0:00:16]}  hxg5 {[%clk 0:00:36]} 38. Ng7 {[%clk 0:00:16]}  Kd5 {[%clk 0:00:36]} 39. Nf5 {[%clk 0:00:12]}  Nc4 {[%clk 0:00:34]} 40. f4 {[%clk 0:00:12]}  gxf4 {[%clk 0:00:33]} 41. gxf4 {[%clk 0:00:12]}  exf4 {[%clk 0:00:30]} 42. Nh4 {[%clk 0:00:10]}  Ke4 {[%clk 0:00:29]} 43. Ng2 {[%clk 0:00:10]}  Nfe5 {[%clk 0:00:19]} 44. Nxf4 {[%clk 0:00:08]}  Kxf4 {[%clk 0:00:20]} 45. a5 {[%clk 0:00:08]}  Nxa5 {[%clk 0:00:19]} 1/2-1/2


[Site "https://www.chess.com"]

[Event "Titled Tuesday Blitz November 08 Early 2022"]
[White "Lakshmi C"]
[Black "Muminova, Nafisa"]
[WhiteFideId "25035347"]
[BlackFideId "14201526"]
[WhiteElo "1865"]
[BlackElo "2258"]
[Result "0-1"]
[Round "03"]
[TimeControl "180+1"]
[Date "2022.11.09"]
[WhiteClock "0:00:01"]
[BlackClock "0:00:36"]

1. e4 {[%clk 0:02:54]}  e6 {[%clk 0:02:59]} 2. d4 {[%clk 0:02:53]}  d5 {[%clk 0:02:56]} 3. Nc3 {[%clk 0:02:53]}  Nf6 {[%clk 0:02:56]} 4. e5 {[%clk 0:02:49]}  Nfd7 {[%clk 0:02:55]} 5. f4 {[%clk 0:02:47]}  c5 {[%clk 0:02:56]} 6. Be3 {[%clk 0:02:40]}  Nc6 {[%clk 0:02:56]} 7. Nf3 {[%clk 0:02:39]}  Qb6 {[%clk 0:02:57]} 8. Qd2 {[%clk 0:02:35]}  Qxb2 {[%clk 0:02:56]} 9. Rb1 {[%clk 0:02:35]}  Qa3 {[%clk 0:02:56]} 10. Nb5 {[%clk 0:02:27]}  Qxa2 {[%clk 0:02:56]} 11. Rc1 {[%clk 0:02:09]}  Rb8 {[%clk 0:02:56]} 12. dxc5 {[%clk 0:01:59]}  Nxc5 {[%clk 0:02:52]} 13. Nd6+ {[%clk 0:01:50]}  Bxd6 {[%clk 0:02:47]} 14. exd6 {[%clk 0:01:49]}  Ne4 {[%clk 0:02:47]} 15. Qe2 {[%clk 0:01:37]}  Nxd6 {[%clk 0:02:33]} 16. Nd4 {[%clk 0:01:27]}  Nxd4 {[%clk 0:02:15]} 17. Bxd4 {[%clk 0:01:26]}  Qa5+ {[%clk 0:02:15]} 18. c3 {[%clk 0:01:26]}  Nf5 {[%clk 0:02:12]} 19. Be5 {[%clk 0:01:19]}  Ra8 {[%clk 0:02:05]} 20. g4 {[%clk 0:01:19]}  Ne7 {[%clk 0:01:57]} 21. Bxg7 {[%clk 0:01:16]}  Rg8 {[%clk 0:01:57]} 22. Bf6 {[%clk 0:01:06]}  Bd7 {[%clk 0:01:57]} 23. Bh3 {[%clk 0:01:03]}  Rc8 {[%clk 0:01:54]} 24. f5 {[%clk 0:00:58]}  Qb5 {[%clk 0:01:42]} 25. Qe3 {[%clk 0:00:50]}  Qc5 {[%clk 0:01:38]} 26. Bd4 {[%clk 0:00:50]}  Qc4 {[%clk 0:01:23]} 27. g5 {[%clk 0:00:47]}  exf5 {[%clk 0:01:20]} 28. Rb1 {[%clk 0:00:14]}  b6 {[%clk 0:01:17]} 29. Bf1 {[%clk 0:00:12]}  Qa2 {[%clk 0:01:09]} 30. Bd3 {[%clk 0:00:11]}  Rg6 {[%clk 0:01:05]} 31. O-O {[%clk 0:00:10]}  Re6 {[%clk 0:01:04]} 32. Qf4 {[%clk 0:00:10]}  Ng6 {[%clk 0:01:02]} 33. Qf3 {[%clk 0:00:09]}  f4 {[%clk 0:01:00]} 34. Bf5 {[%clk 0:00:08]}  Re7 {[%clk 0:00:59]} 35. Ra1 {[%clk 0:00:08]}  Qc4 {[%clk 0:00:57]} 36. Bxg6 {[%clk 0:00:08]}  hxg6 {[%clk 0:00:56]} 37. Qxf4 {[%clk 0:00:08]}  Be6 {[%clk 0:00:52]} 38. Bf6 {[%clk 0:00:07]}  Qxf4 {[%clk 0:00:51]} 39. Rxf4 {[%clk 0:00:07]}  Rec7 {[%clk 0:00:52]} 40. Rh4 {[%clk 0:00:07]}  Kd7 {[%clk 0:00:52]} 41. Rh7 {[%clk 0:00:06]}  Kd6 {[%clk 0:00:50]} 42. h4 {[%clk 0:00:05]}  a5 {[%clk 0:00:49]} 43. Re1 {[%clk 0:00:05]}  Kc5 {[%clk 0:00:48]} 44. Bd4+ {[%clk 0:00:05]}  Kc6 {[%clk 0:00:48]} 45. Be5 {[%clk 0:00:05]}  Rb7 {[%clk 0:00:47]} 46. Rf1 {[%clk 0:00:05]}  b5 {[%clk 0:00:47]} 47. h5 {[%clk 0:00:04]}  gxh5 {[%clk 0:00:45]} 48. Rf6 {[%clk 0:00:04]}  Re8 {[%clk 0:00:40]} 49. g6 {[%clk 0:00:01]}  fxg6 {[%clk 0:00:40]} 50. Rh6 {[%clk 0:00:01]}  Kc5 {[%clk 0:00:36]} 0-1


[Site "https://www.chess.com"]